bitfinex/quotes_SOLUSD_20240909
["timestamp","ask_amount","ask_price","bid_price","bid_amount"]
[1725873107691,7.6439,130.83,130.76,45.77999162]
[1725873107902,45.0,130.82,130.76,45.77999162]
[1725873108483,45.0,130.83,130.76,45.77999162]
[1725873109172,45.0,130.84,130.76,45.77999162]
[1725873110074,52.6429,130.84,130.76,45.77999162]
[1725873110389,52.6429,130.84,130.78,39.34839162]
[1725873110587,45.0,130.84,130.78,39.34839162]
[1725873111698,7.6435,130.83,130.78,39.34839162]
[1725873112003,65.0,130.82,130.75,0.8391501]
[1725873112295,7.6453,130.8,130.75,0.8391501]
[1725873112470,45.0,130.79,130.75,0.8391501]
[1725873112885,45.0,130.8,130.75,0.8391501]
[1725873113087,45.0,130.81,130.75,0.8391501]
[1725873114176,27.6442,130.82,130.75,0.8391501]
[1725873114717,7.6449,130.81,130.75,0.8391501]
[1725873115199,27.6442,130.82,130.75,0.8391501]
[1725873115400,45.0,130.81,130.75,0.8391501]
[1725873116596,20.0,130.8,130.75,0.8391501]
[1725873116783,45.0,130.79,130.75,0.8391501]
[1725873120803,7.6445,130.82,130.75,0.8391501]
[1725873120997,7.6453,130.8,130.75,0.8391501]
[1725873122215,7.6464,130.78,130.75,0.8391501]
[1725873122395,45.0,130.77,130.75,0.8391501]
[1725873123010,20.0,130.81,130.75,0.8391501]
[1725873123297,20.0,130.82,130.76,39.34839162]
[1725873123504,7.6431,130.84,130.77,15.7071]
[1725873123708,20.0,130.83,130.77,15.7071]
[1725873124099,7.6425,130.85,130.77,15.7071]
[1725873124404,22.962,130.86,130.77,15.7071]
[1725873124725,24.73980352,130.87,130.78,45.64679162]
[1725873125206,17.09850352,130.87,130.8,39.34839162]
[1725873125398,260.7606,130.92,130.8,39.34839162]
[1725873125707,260.7606,130.92,130.81,16.223]
[1725873125708,7.6401,130.89,130.81,16.223]
[1725873126133,7.48727209,130.92,130.81,16.223]
[1725873126134,7.6394,130.9,130.81,16.223]
[1725873126628,7.48727209,130.92,130.81,16.223]
[1725873126629,20.0,130.89,130.81,16.223]
[1725873126815,50.0,130.91,130.81,16.223]
[1725873126816,20.0,130.9,130.81,16.223]
[1725873127002,50.0,130.91,130.81,16.223]
[1725873127403,7.6401,130.89,130.81,16.223]
[1725873127818,7.6406,130.88,130.81,16.223]
[1725873128617,20.0,130.87,130.81,16.223]
[1725873128928,45.0,130.86,130.81,16.223]
[1725873129433,52.6418,130.86,130.81,16.223]
[1725873129824,45.0,130.86,130.81,16.223]
[1725873130814,20.0,130.85,130.81,16.223]
[1725873131015,45.0,130.84,130.81,16.223]
[1725873133720,52.6424,130.85,130.81,16.223]
[1725873133919,45.0,130.85,130.78,22.2043]
[1725873134133,27.643,130.84,130.78,22.2043]
[1725873134338,45.0,130.83,130.78,22.2043]
[1725873135144,45.0,130.83,130.78,61.55269162]
[1725873139347,7.6412,130.87,130.78,61.55269162]
[1725873139546,65.0,130.86,130.78,61.55269162]
[1725873140116,72.6417,130.86,130.79,15.74892565]
[1725873140317,65.0,130.86,130.79,15.74892565]
[1725873140925,7.48727209,130.92,130.83,15.74892565]
[1725873141127,6.1606,130.92,130.85,15.74892565]
[1725873141456,15.6313,130.93,130.85,15.74892565]
[1725873141743,23.2694,130.93,130.85,15.74892565]
[1725873142125,7.6381,130.93,130.86,15.3361]
[1725873142555,20.0,130.92,130.86,15.3361]
[1725873142924,27.6382,130.92,130.86,15.3361]
[1725873143342,7.6394,130.9,130.84,6.516]
[1725873143524,7.6392,130.91,130.84,6.516]
[1725873143727,27.6395,130.9,130.84,6.516]
[1725873143928,7.6395,130.9,130.84,6.516]
[1725873144125,45.0,130.89,130.84,6.516]
[1725873144628,52.6401,130.89,130.84,6.516]
[1725873150323,45.0,130.89,130.84,6.516]
[1725873153530,45.0,130.9,130.84,6.516]
[1725873153731,20.0,130.89,130.84,6.516]
[1725873154433,45.0,130.88,130.84,6.516]
[1725873159057,52.6405,130.88,130.83,15.3837]
[1725873159353,45.0,130.88,130.83,15.3837]
[1725873159729,45.0,130.88,130.81,6.3373]
[1725873159730,7.6421,130.86,130.81,6.3373]
[1725873159933,20.0,130.87,130.81,6.3373]
[1725873159934,52.6427,130.85,130.81,6.3373]
[1725873160235,20.0,130.84,130.8,15.9924]
[1725873160429,7.6446,130.81,130.77,6.4133]
[1725873160629,7.6446,130.81,130.77,22.7031]
[1725873160630,45.0,130.8,130.77,22.7031]
[1725873161047,45.0,130.8,130.77,16.2898]
[1725873161446,52.6452,130.8,130.77,16.2898]
[1725873162154,27.6459,130.79,130.75,0.8391501]
[1725873162460,45.0,130.78,130.75,0.8391501]
[1725873163334,52.6464,130.78,130.75,0.8391501]
[1725873165237,45.0,130.78,130.75,0.8391501]
[1725873166033,52.6464,130.78,130.75,0.8391501]
[1725873167057,45.0,130.78,130.75,0.8391501]
[1725873167229,7.6475,130.76,130.75,0.8391501]
[1725873167429,52.6475,130.76,130.75,0.8391501]
[1725873167637,72.6475,130.76,130.75,0.8391501]
[1725873169959,7.6494,130.73,130.66,15.8593]
[1725873170172,45.0,130.72,130.66,15.8593]
[1725873170459,52.6502,130.72,130.66,15.8593]
[1725873171249,45.0,130.72,130.66,15.8593]
[1725873172432,45.0,130.72,130.66,55.1913948]
[1725873172654,45.0,130.73,130.66,55.1913948]
[1725873173058,45.0,130.74,130.66,55.1913948]
[1725873173246,27.6477,130.76,130.68,39.3320948]
[1725873173443,20.0,130.75,130.68,39.3320948]
[1725873173955,7.6477,130.76,130.68,39.3320948]
[1725873175557,25.7793,130.79,130.68,39.3320948]
[1725873175558,20.0,130.75,130.68,39.3320948]
[1725873175760,20.0,130.76,130.68,39.3320948]
[1725873176763,27.6476,130.76,130.68,39.3320948]
[1725873176947,20.0,130.76,130.68,39.3320948]
[1725873177133,45.0,130.75,130.68,39.3320948]
[1725873178059,45.0,130.75,130.66,15.8593]
[1725873178368,52.6482,130.75,130.68,39.3320948]
[1725873178943,45.0,130.75,130.68,39.3320948]
[1725873179144,52.6483,130.75,130.68,39.3320948]
[1725873179458,52.6483,130.75,130.66,55.1913948]
[1725873179459,27.649,130.74,130.66,55.1913948]
[1725873179786,45.0,130.73,130.66,55.1913948]
[1725873179941,52.6493,130.73,130.66,55.1913948]
[1725873180952,45.0,130.73,130.66,55.1913948]
[1725873181261,52.6495,130.73,130.66,55.1913948]
[1725873181566,27.6501,130.72,130.66,15.8593]
[1725873181742,45.0,130.71,130.66,15.8593]
[1725873182163,45.0,130.72,130.66,15.8593]
[1725873182457,20.0,130.71,130.66,15.8593]
[1725873182767,45.0,130.73,130.66,15.8593]
[1725873183064,20.0,130.72,130.66,15.8593]
[1725873183262,52.6506,130.71,130.66,15.8593]
[1725873183761,20.0,130.7,130.66,15.8593]
[1725873183952,45.0,130.69,130.66,15.8593]
[1725873184270,45.0,130.69,130.63,54.8224948]
[1725873184475,45.0,130.69,130.63,15.4904]
[1725873186970,20.0,130.68,130.63,15.4904]
[1725873187177,45.0,130.67,130.63,15.4904]
[1725873188947,45.0,130.67,130.62,7.2792501]
[1725873189147,45.0,130.67,130.62,0.8391501]
[1725873189871,20.0,130.68,130.62,0.8391501]
[1725873190069,20.0,130.69,130.62,0.8391501]
[1725873190282,20.0,130.69,130.65,39.3320948]
[1725873190456,22.7467,130.75,130.66,16.0774]
[1725873190769,7.6488,130.74,130.66,16.0774]
[1725873190983,1.32429207,130.76,130.69,39.3320948]
[1725873191183,7.6472,130.77,130.69,39.3320948]
[1725873191349,16.65711392,130.78,130.69,39.3320948]
[1725873191546,50.0,130.77,130.67,39.3320948]
[1725873191776,50.0,130.77,130.66,16.0774]
[1725873191777,7.6497,130.73,130.66,16.0774]
[1725873192472,20.0,130.72,130.66,16.0774]
[1725873192656,45.0,130.71,130.66,16.0774]
[1725873192964,52.6506,130.71,130.66,16.0774]
[1725873193163,52.6506,130.71,130.62,0.8391501]
[1725873193164,27.6512,130.7,130.63,55.7766948]
[1725873193364,45.0,130.69,130.63,55.7766948]
[1725873195263,45.0,130.69,130.63,16.4446]
[1725873195866,52.6517,130.69,130.63,16.4446]
[1725873196170,45.0,130.69,130.63,55.7766948]
[1725873197665,52.6517,130.69,130.63,55.7766948]
[1725873197987,45.0,130.69,130.63,55.7766948]
[1725873199088,45.0,130.69,130.63,16.4446]
[1725873199776,52.6517,130.69,130.63,16.4446]
[1725873200094,27.6523,130.68,130.63,16.4446]
[1725873200301,45.0,130.67,130.62,0.8391501]
[1725873200466,7.6535,130.66,130.62,0.8391501]
[1725873200667,45.0,130.65,130.62,0.8391501]
[1725873201177,45.0,130.66,130.62,0.8391501]
[1725873202092,20.0,130.68,130.63,39.3320948]
[1725873202289,69.1259,130.72,130.63,39.3320948]
[1725873202290,27.6516,130.69,130.63,39.3320948]
[1725873202501,20.0,130.69,130.62,0.8391501]
[1725873202696,7.6526,130.68,130.62,0.8391501]
[1725873203075,20.0,130.67,130.62,0.8391501]
[1725873203475,45.0,130.66,130.62,0.8391501]
[1725873206893,52.6536,130.66,130.62,0.8391501]
[1725873207276,7.6541,130.65,130.62,0.8391501]
[1725873207477,45.0,130.64,130.62,0.8391501]
[1725873208500,7.6552,130.63,130.62,0.8391501]
[1725873208689,45.0,130.63,130.62,0.8391501]
[1725873209185,65.0,130.63,130.62,0.8391501]
[1725873210379,72.6552,130.63,130.62,0.8391501]
[1725873211593,79.247,130.63,130.62,0.8391501]
[1725873211977,72.6552,130.63,130.62,0.8391501]
[1725873215189,7.6567,130.61,130.52,22.1861]
[1725873215397,65.0,130.6,130.53,39.3320948]
[1725873215807,65.0,130.6,130.55,39.3320948]
[1725873216001,45.0,130.6,130.57,39.3320948]
[1725873216321,7.6557,130.63,130.57,39.3320948]
[1725873216700,20.0,130.62,130.57,39.3320948]
[1725873217012,27.6558,130.62,130.57,39.3320948]
[1725873217205,20.0,130.62,130.52,22.1861]
[1725873217414,45.0,130.61,130.52,22.1861]
[1725873217597,7.6576,130.59,130.52,61.5181948]
[1725873217909,45.0,130.58,130.52,61.5181948]
[1725873218087,45.0,130.58,130.52,22.1861]
[1725873218285,7.6582,130.58,130.52,22.1861]
[1725873218490,45.0,130.57,130.52,22.1861]
[1725873220699,45.0,130.57,130.53,39.3320948]
[1725873221008,20.0,130.6,130.55,39.3320948]
[1725873221199,7.6564,130.61,130.55,39.3320948]
[1725873221406,20.0,130.6,130.55,39.3320948]
[1725873221598,20.0,130.6,130.52,22.1861]
[1725873221794,20.0,130.6,130.53,39.3320948]
[1725873222003,20.0,130.6,130.52,22.1861]
[1725873222004,20.0,130.61,130.55,39.3320948]
[1725873222192,20.0,130.61,130.52,22.1861]
[1725873222400,20.0,130.63,130.54,39.3320948]
[1725873223111,20.0,130.63,130.52,22.1861]
[1725873223290,20.0,130.63,130.53,39.3320948]
[1725873224216,45.0,130.62,130.53,39.3320948]
[1725873224426,7.657,130.6,130.53,39.3320948]
[1725873224595,45.0,130.59,130.53,39.3320948]
[1725873225119,52.6578,130.59,130.53,39.3320948]
[1725873225495,7.6565,130.61,130.53,39.3320948]
[1725873225698,20.0,130.6,130.53,39.3320948]
[1725873226428,27.6572,130.6,130.53,39.3320948]
[1725873226997,45.0,130.59,130.53,39.3320948]
[1725873228233,45.0,130.59,130.49,62.0633449]
[1725873228526,20.0,130.58,130.49,62.0633449]
[1725873228701,45.0,130.57,130.49,62.0633449]
[1725873229021,20.0,130.56,130.49,62.0633449]
[1725873229321,45.0,130.55,130.49,62.0633449]
[1725873230108,45.0,130.55,130.51,39.3320948]
[1725873230516,7.6586,130.58,130.51,39.3320948]
[1725873230716,20.0,130.57,130.51,39.3320948]
[1725873232511,45.0,130.56,130.51,39.3320948]
[1725873232713,45.0,130.57,130.51,39.3320948]
[1725873233717,45.0,130.57,130.49,22.7312501]
[1725873233718,52.6587,130.57,130.49,22.7312501]
[1725873234029,52.6587,130.57,130.5,39.3320948]
[1725873234721,45.0,130.57,130.52,39.3320948]
[1725873236131,20.0,130.58,130.52,39.3320948]
[1725873236308,20.0,130.61,130.52,39.3320948]
[1725873236503,7.6585,130.58,130.52,39.3320948]
[1725873237524,45.0,130.57,130.52,39.3320948]
[1725873238619,52.6587,130.57,130.52,39.3320948]
[1725873238827,45.0,130.57,130.52,39.3320948]
[1725873240518,20.0,130.61,130.54,39.3320948]
[1725873241634,27.6567,130.61,130.54,39.3320948]
[1725873242353,27.6567,130.61,130.55,15.8187]
[1725873243036,7.657,130.6,130.55,15.8187]
[1725873243414,27.6577,130.59,130.55,15.8187]
[1725873243738,45.0,130.58,130.55,15.8187]
[1725873245308,52.6582,130.58,130.5,15.5793]
[1725873245637,45.0,130.58,130.51,39.3320948]
[1725873247327,45.0,130.58,130.53,39.3320948]
[1725873251236,45.0,130.59,130.53,39.3320948]
[1725873252941,52.6576,130.59,130.53,39.3320948]
[1725873253248,7.6582,130.58,130.53,39.3320948]
[1725873253450,45.0,130.57,130.53,39.3320948]
[1725873254335,45.0,130.57,130.54,15.81181168]
[1725873254535,45.0,130.57,130.49,7.4925501]
[1725873254736,7.6606,130.54,130.49,0.8391501]
[1725873254921,45.0,130.53,130.49,0.8391501]
[1725873255319,7.6628,130.5,130.49,0.8391501]
[1725873255624,72.6628,130.5,130.49,0.8391501]
[1725873257054,65.0,130.5,130.49,0.8391501]
[1725873257373,15.6968,130.56,130.49,16.65096178]
[1725873257530,20.0,130.55,130.49,0.8391501]
[1725873257734,20.0,130.55,130.49,16.65096178]
[1725873257735,7.6605,130.54,130.49,16.65096178]
[1725873257924,7.6599,130.55,130.49,16.65096178]
[1725873258253,7.6599,130.55,130.49,40.39272864]
[1725873258455,6.2961,130.58,130.5,16.6184]
[1725873258625,7.6589,130.57,130.5,16.6184]
[1725873259861,20.0,130.56,130.5,16.6184]
[1725873260351,20.0,130.56,130.51,39.55357854]
[1725873260719,45.0,130.55,130.51,39.55357854]
[1725873262550,45.0,130.55,130.5,16.6184]
[1725873263249,20.0,130.56,130.51,39.55357854]
[1725873263455,20.0,130.57,130.51,39.55357854]
[1725873263634,45.0,130.56,130.51,39.55357854]
[1725873264022,20.0,130.57,130.51,39.55357854]
[1725873264643,20.0,130.58,130.51,39.55357854]
[1725873265834,45.0,130.57,130.51,39.55357854]
[1725873266030,1.31988115,130.61,130.53,39.55357854]
[1725873266235,16.4779,130.66,130.57,39.55357854]
[1725873266436,24.1318,130.66,130.58,6.6299]
[1725873266641,7.6541,130.65,130.58,6.6299]
[1725873267361,75.228,130.64,130.5,22.4065]
[1725873267557,7.6588,130.57,130.5,22.4065]
[1725873267768,7.6593,130.56,130.5,22.4065]
[1725873268051,10.78201798,130.59,130.5,15.8503]
[1725873268052,6.0907,130.58,130.5,15.8503]
[1725873268259,7.66,130.55,130.5,15.8503]
[1725873268755,7.6595,130.56,130.5,15.8503]
[1725873268932,7.6585,130.58,130.51,39.55357854]
[1725873269256,45.0,130.57,130.51,39.55357854]
[1725873269444,7.6576,130.59,130.51,39.55357854]
[1725873269628,27.6581,130.58,130.51,39.55357854]
[1725873269969,52.6587,130.57,130.51,39.55357854]
[1725873270255,45.0,130.57,130.5,65.2735609]
[1725873271559,27.6582,130.58,130.5,65.2735609]
[1725873271857,45.0,130.57,130.5,65.2735609]
[1725873272735,7.6607,130.54,130.49,0.8391501]
[1725873272931,7.6599,130.55,130.49,0.8391501]
[1725873273130,45.0,130.54,130.49,0.8391501]
[1725873273349,7.6593,130.56,130.49,0.8391501]
[1725873273847,7.6628,130.5,130.49,0.8391501]
[1725873274253,52.6628,130.5,130.49,0.8391501]
[1725873274451,72.6628,130.5,130.49,0.8391501]
[1725873275160,7.6622,130.51,130.49,0.8391501]
[1725873275867,72.6628,130.5,130.49,0.8391501]
[1725873276262,20.0,130.5,130.49,0.8391501]
[1725873277954,7.6615,130.53,130.49,0.8391501]
[1725873278146,65.0,130.52,130.49,0.8391501]
[1725873278354,7.6605,130.54,130.49,0.8391501]
[1725873278555,20.0,130.53,130.49,0.8391501]
[1725873279651,45.0,130.52,130.49,0.8391501]
[1725873280561,7.665,130.47,130.37,21.1586]
[1725873280746,7.6652,130.46,130.37,21.1586]
[1725873280946,45.0,130.45,130.37,21.1586]
[1725873281146,7.6647,130.47,130.37,21.1586]
[1725873281372,41.3478,130.51,130.37,21.1586]
[1725873281373,7.664,130.48,130.38,49.4232609]
[1725873281561,65.0,130.47,130.38,49.4232609]
[1725873281758,45.0,130.47,130.38,49.4232609]
[1725873281955,7.664,130.48,130.39,20.0]
[1725873282564,21.3478,130.51,130.39,20.0]
[1725873282565,45.0,130.47,130.39,20.0]
[1725873284452,7.6635,130.49,130.39,20.0]
[1725873284652,65.0,130.48,130.39,20.0]
[1725873285472,20.0,130.48,130.4,49.4232609]
[1725873286859,26.58563119,130.54,130.43,16.624]
[1725873287064,20.0,130.53,130.43,16.624]
[1725873288071,45.0,130.52,130.43,16.624]
[1725873288269,27.6623,130.51,130.43,16.624]
[1725873288473,45.0,130.5,130.43,16.624]
[1725873289064,7.6609,130.54,130.44,49.4232609]
[1725873290373,7.6609,130.54,130.45,6.5957]
[1725873290576,20.0,130.53,130.45,6.5957]
[1725873291569,20.0,130.53,130.46,49.4232609]
[1725873291881,20.0,130.54,130.46,49.4232609]
[1725873292569,72.1628,130.53,130.41,22.6524]
[1725873292756,50.0,130.51,130.41,22.6524]
[1725873292962,7.6649,130.47,130.41,22.6524]
[1725873293180,45.0,130.46,130.41,22.6524]
[1725873295387,7.6641,130.48,130.41,22.6524]
[1725873295878,7.6633,130.5,130.41,22.6524]
[1725873296088,65.0,130.49,130.41,22.6524]
[1725873297281,7.664,130.48,130.41,22.6524]
[1725873297491,72.6639,130.49,130.41,22.6524]
[1725873297660,7.6641,130.48,130.41,22.6524]
[1725873297979,50.0,130.42,130.3,40.34944774]
[1725873298165,20.0,130.41,130.3,22.3543]
[1725873298369,7.6688,130.4,130.3,22.3543]
[1725873298587,64.1527,130.45,130.3,22.3543]
[1725873298588,72.6694,130.39,130.3,22.3543]
[1725873298756,7.6704,130.37,130.3,22.3543]
[1725873298957,45.0,130.37,130.3,22.3543]
[1725873299161,52.6704,130.37,130.3,22.3543]
[1725873299388,72.6704,130.37,130.3,22.3543]
[1725873299776,7.6693,130.39,130.3,22.3543]
[1725873299965,65.0,130.38,130.3,22.3543]
[1725873300170,20.0,130.38,130.3,22.3543]
[1725873300487,50.64400129,130.45,130.3,71.7775609]
[1725873300793,7.667,130.43,130.32,49.4232609]
[1725873300956,7.6664,130.44,130.32,49.4232609]
[1725873301170,7.6669,130.44,130.32,49.4232609]
[1725873301375,24.99210129,130.45,130.32,49.4232609]
[1725873301561,24.99210129,130.45,130.33,20.0]
[1725873301762,17.32630129,130.45,130.37,21.509]
[1725873301962,7.6652,130.46,130.37,21.509]
[1725873302176,6.2464,130.5,130.37,21.509]
[1725873303276,7.6641,130.48,130.37,21.509]
[1725873303478,7.6634,130.49,130.37,21.509]
[1725873303786,7.6634,130.49,130.38,49.4232609]
[1725873303988,13.9093,130.5,130.38,49.4232609]
[1725873304171,7.6634,130.49,130.38,49.4232609]
[1725873304781,6.2149,130.43,130.36,0.8391501]
[1725873304967,7.6704,130.37,130.36,0.8391501]
[1725873305186,27.6704,130.37,130.36,0.8391501]
[1725873305478,72.6704,130.37,130.36,0.8391501]
[1725873306275,65.0,130.37,130.36,0.8391501]
[1725873306987,20.0,130.37,130.36,0.8391501]
[1725873307186,7.6688,130.4,130.36,0.8391501]
[1725873307399,20.0,130.39,130.36,0.8391501]
[1725873307587,45.0,130.38,130.36,0.8391501]
[1725873308069,52.6701,130.38,130.36,0.8391501]
[1725873308271,45.0,130.38,130.36,0.8391501]
[1725873310595,50.0,130.36,130.28,4.9508232]
[1725873310892,50.0,130.36,130.24,0.8391501]
[1725873310893,7.6718,130.35,130.24,0.8391501]
[1725873311192,20.0,130.34,130.24,60.35667591]
[1725873311499,27.6723,130.34,130.24,60.35667591]
[1725873311696,20.0,130.34,130.24,60.35667591]
[1725873311898,27.6724,130.34,130.24,60.35667591]
[1725873312190,52.6706,130.37,130.28,59.51752581]
[1725873312385,20.0,130.36,130.28,59.51752581]
[1725873313276,20.0,130.37,130.28,59.51752581]
[1725873314576,20.0,130.39,130.28,59.51752581]
[1725873314806,45.0,130.38,130.28,59.51752581]
[1725873315110,52.6699,130.38,130.28,59.51752581]
[1725873316506,45.0,130.38,130.28,59.51752581]
[1725873317277,45.0,130.38,130.3,59.51752581]
[1725873317489,20.0,130.39,130.3,59.51752581]
[1725873317692,20.0,130.4,130.3,59.51752581]
[1725873317891,45.0,130.39,130.3,59.51752581]
[1725873319476,20.0,130.4,130.32,59.51752581]
[1725873320102,16.89961408,130.41,130.32,59.51752581]
[1725873320310,19.1619,130.47,130.35,22.839]
[1725873320505,100.87813621,130.49,130.35,22.839]
[1725873320680,7.6659,130.45,130.36,59.51752581]
[1725873321108,7.6659,130.45,130.37,1.53364264]
[1725873321306,7.6659,130.45,130.36,59.51752581]
[1725873322399,50.0,130.41,130.25,21.4844]
[1725873322710,7.6727,130.34,130.25,21.4844]
[1725873323024,69.1739,130.39,130.25,21.4844]
[1725873323025,52.673,130.33,130.25,21.4844]
[1725873323184,7.6722,130.35,130.25,21.4844]
[1725873323385,72.6724,130.34,130.25,21.4844]
[1725873324895,7.6711,130.36,130.26,59.51752581]
[1725873325720,7.6705,130.37,130.26,59.51752581]
[1725873325896,20.0,130.36,130.27,45.0]
[1725873326816,45.0,130.35,130.26,59.51752581]
[1725873327389,20.0,130.36,130.26,59.51752581]
[1725873328191,20.0,130.36,130.27,45.0]
[1725873328899,7.67,130.38,130.27,45.0]
[1725873329110,65.0,130.37,130.27,45.0]
[1725873331717,7.6676,130.42,130.31,21.8943]
[1725873331889,7.6682,130.41,130.31,21.8943]
[1725873332093,7.6687,130.4,130.31,21.8943]
[1725873332920,11.23970352,130.42,130.31,21.8943]
[1725873333126,45.0,130.41,130.31,21.8943]
[1725873333431,52.6682,130.41,130.31,21.8943]
[1725873333793,24.37170233,130.43,130.33,49.57183983]
[1725873334094,7.6665,130.44,130.33,49.57183983]
[1725873334804,7.6665,130.44,130.35,49.57183983]
[1725873335519,20.0,130.43,130.35,49.57183983]
[1725873335699,20.0,130.44,130.35,49.57183983]
[1725873335898,20.0,130.45,130.35,49.57183983]
[1725873337502,45.0,130.44,130.35,49.57183983]
[1725873340529,45.0,130.44,130.36,6.1867]
[1725873340823,45.0,130.44,130.37,15.484]
[1725873342092,31.23970352,130.43,130.33,22.1281]
[1725873342300,7.6691,130.4,130.33,22.1281]
[1725873342599,45.0,130.42,130.33,22.1281]
[1725873342600,20.0,130.39,130.33,22.1281]
[1725873342824,52.6703,130.38,130.33,22.1281]
[1725873343021,20.0,130.37,130.33,22.1281]
[1725873343340,20.0,130.37,130.29,22.1281]
[1725873343538,7.6717,130.35,130.29,22.1281]
[1725873343838,45.0,130.34,130.29,22.1281]
[1725873344002,52.6722,130.34,130.29,22.1281]
[1725873344201,45.0,130.34,130.29,22.1281]
[1725873344399,52.6724,130.34,130.25,22.1281]
[1725873344724,27.6728,130.33,130.25,22.1281]
[1725873345027,45.0,130.32,130.25,22.1281]
[1725873347225,6.3275,130.46,130.3,49.57183983]
[1725873347412,15.313,130.47,130.39,49.57183983]
[1725873347722,16.95709074,130.51,130.43,49.57183983]
[1725873348127,7.661,130.53,130.43,49.57183983]
[1725873348326,7.6616,130.52,130.43,49.57183983]
[1725873348804,7.6611,130.53,130.43,49.57183983]
[1725873349697,7.6617,130.52,130.43,49.57183983]
[1725873349941,7.6617,130.52,130.37,28.55536869]
[1725873349942,50.0,130.53,130.41,49.57183983]
[1725873350117,7.6633,130.5,130.39,59.40924803]
[1725873350430,65.0,130.49,130.39,59.40924803]
[1725873351437,7.6617,130.52,130.43,59.40924803]
[1725873351620,6.3275,130.54,130.43,59.40924803]
[1725873351621,7.6614,130.53,130.43,59.40924803]
[1725873352437,7.6614,130.53,130.45,59.40924803]
[1725873352914,20.0,130.52,130.45,59.40924803]
[1725873353347,6.3275,130.54,130.45,59.40924803]
[1725873354541,7.66,130.55,130.47,59.40924803]
[1725873355120,7.6593,130.56,130.47,59.40924803]
[1725873355320,15.313,130.57,130.49,59.40924803]
[1725873355630,22.9717,130.57,130.49,59.40924803]
[1725873356418,16.75646383,130.59,130.51,59.40924803]
[1725873356630,21.6284,130.62,130.52,1.53214834]
[1725873357217,21.6284,130.62,130.53,59.40924803]
[1725873357419,7.6569,130.61,130.53,59.40924803]
[1725873357948,7.657,130.6,130.53,59.40924803]
[1725873358629,7.6564,130.61,130.53,59.40924803]
[1725873359854,29.2843,130.62,130.53,59.40924803]
[1725873360036,69.1356,130.65,130.55,59.40924803]
[1725873360236,7.6546,130.65,130.57,59.40924803]
[1725873361651,29.6753,130.66,130.57,59.40924803]
[1725873362049,7.6541,130.65,130.57,59.40924803]
[1725873362661,20.0,130.64,130.57,59.40924803]
[1725873363760,20.0,130.65,130.57,59.40924803]
[1725873363969,2.15889568,130.69,130.59,59.40924803]
[1725873363970,7.6528,130.67,130.59,59.40924803]
[1725873364564,7.6524,130.68,130.59,59.40924803]
[1725873365268,0.8391501,130.69,130.61,59.40924803]
[1725873365447,7.6532,130.67,130.61,59.40924803]
[1725873365767,7.6524,130.68,130.61,59.40924803]
[1725873365937,20.0,130.67,130.61,59.40924803]
[1725873367372,45.0,130.66,130.61,59.40924803]
[1725873367550,20.0,130.65,130.57,59.40924803]
[1725873367745,20.0,130.65,130.55,65.79154803]
[1725873367746,45.0,130.64,130.55,65.79154803]
[1725873368068,52.6546,130.64,130.55,65.79154803]
[1725873369645,45.0,130.64,130.55,65.79154803]
[1725873372070,45.0,130.64,130.55,67.32301346]
[1725873372271,45.0,130.64,130.55,65.79154803]
[1725873372443,52.6547,130.64,130.55,65.79154803]
[1725873373155,45.0,130.64,130.56,1.53155616]
[1725873373354,45.0,130.64,130.55,65.79154803]
[1725873373554,45.0,130.64,130.57,59.40924803]